Cogmind - Beta 14 @@@ ROGUE MODE // 2024.08.23 @ 20:03:59 Player: alexustasu Result: Self-destructed Performance ------------- Evolutions (1) 500 Regions Visited (2) 400 Robots Destroyed (10) 50 Value Destroyed (205) 205 Prototype IDs (1) 20 Alien Tech Used (0) 0 Bonus (200) 200 TOTAL SCORE: 1375 Bonus ------- Pacifist 200 Cogmind --------- Core Integrity 349/400 Matter 216/300 Energy 140/140 System Corruption 0% Temperature Cool (0) Movement Rolling (115) Ox1 Location -9/Materials Parts ------- > --- POWER (1) -------- Light Deuterium Engine > --- PROPULSION (2) --- Aluminum Leg Compact Wheel > --- UTILITY (3) ------ Heat Sink Medium Storage Unit Sensor Array > --- WEAPON (3) ------- Particle Gun Ion Cannon Datajack > --- INVENTORY (10) --- Light Deuterium Engine Light Deuterium Engine Heat Sink Medium Storage Unit Signal Interpreter Hardened Medium Armor Plating Beam Rifle Ion Cannon Ion Cannon Ion Cannon Peak State ------------ > --- POWER ------------ Light Deuterium Engine > --- PROPULSION ------- Aluminum Leg Compact Wheel > --- UTILITY ---------- Heat Sink Medium Storage Unit Sensor Array > --- WEAPON ----------- Beam Rifle Particle Gun Ion Cannon > --- INVENTORY -------- Light Deuterium Engine Light Deuterium Engine Heat Sink Medium Storage Unit Signal Interpreter Hardened Medium Armor Plating Particle Gun Ion Cannon Ion Cannon [Rating: 17] Favorites ----------- Power Light Ion Engine Engine Light Ion Engine Propulsion Aluminum Leg Leg Aluminum Leg Wheel Compact Wheel Utility Sensor Array Device Sensor Array Storage Medium Storage Unit Protection Light Armor Plating Weapon Particle Gun Energy Gun Particle Gun Energy Cannon Ion Cannon Ballistic Gun Assault Rifle Special Melee Weapon Datajack Build | -11 -10 -9 ------- Run | Yrd Mat Mat Slots Evolved 2 | . . 2 Power . | . . . Propulsion . | . . . Utility 1 | . . 1 Weapon 1 | . . 1 Parts Attached 27 | 6 4 17 Power 6 | 1 . 5 Engine 6 | 1 . 5 Core . | . . . Reactor . | . . . Propulsion 3 | 2 . 1 Treads . | . . . Leg 2 | 2 . . Wheel 1 | . . 1 Hover . | . . . Flight . | . . . Utility 8 | 1 2 5 Device 4 | . 1 3 Storage 2 | 1 . 1 Processor . | . . . Hackware . | . . . Protection 2 | . 1 1 Artifact . | . . . Weapon 10 | 2 2 6 Energy Gun 7 | 1 2 4 Energy Cannon 1 | . . 1 Ballistic Gun 1 | 1 . . Ballistic Cannon . | . . . Launcher . | . . . Special Weapon . | . . . Impact Weapon . | . . . Slashing Weapon . | . . . Piercing Weapon . | . . . Special Melee Weapon 1 | . . 1 Unidentified Prototypes 1 | . . 1 Parts Lost 2 | . . 2 Power 1 | . . 1 Propulsion 1 | . . 1 Utility . | . . . Weapon . | . . . Highest Loss Streak 1 | . . 1 To Critical Strikes . | . . . Average Slot Usage (%) 97 | . 94 98 Engine 12 | . 14 11 Leg 21 | . 28 17 Wheel 2 | . . 3 Device 11 | . 4 16 Storage 12 | . 14 11 Protection 5 | . 5 5 Energy Gun 27 | . 24 29 Energy Cannon 2 | . . 3 Ballistic Gun 1 | . 3 . Peak Build Rating 17 | 6 10 17 Average Rating 11 | 4 8 13 On Entrance 5 | . 6 10 Naked Turns . | . . . Heaviest Build 29 | 12 17 29 Greatest Support 20 | 20 20 20 Greatest Overweight (x) 3 | 3 . 2 Average Overweight (x) . | . . 1 Largest Inventory Capacity 10 | 8 8 10 Average Capacity 9 | 7 8 9 Most Carried 10 | 4 8 10 Average Carried 7 | 2 7 8 Final Capacity 10 | 8 8 10 Final Carried 10 | 4 8 10 Class Distribution -------------------- 44% | Mutant 28% | Tank 27% | Skirmisher Dominant Class ---------------- Mutant | -10/Materials Tank | -9/Materials Resources | -11 -10 -9 ----------- Run | Yrd Mat Mat Matter Collected 415 | 189 . 226 Remotely . | . . . Salvage Created 255 | . . 255 Parts 16 | . . 16 Haulers Intercepted . | . . . Recyclers Shooed . | . . . Parts Field Recycled . | . . . Retrieved Matter . | . . . Parts Self-Destructed . | . . . Prevented . | . . . Kills | -11 -10 -9 ------- Run | Yrd Mat Mat Combat Hostiles Destroyed 10 | . . 10 Guns 9 | . . 9 Classes Destroyed 2 | . . 2 Swarmer 7 | . . 7 Sentry 3 | . . 3 Best Kill Streak 4 | . . 4 Combat Bots Only 4 | . . 4 Max Kills in Single Turn 1 | . . 1 Gunslinging . | . . . Exploded . | . . . Melee . | . . . Uniques/NPCs Destroyed . | . . . Combat | -11 -10 -9 -------- Run | Yrd Mat Mat Hostile Shots Fired 71 | . . 71 Missed 23 | . . 23 Damage Taken 479 | . . 479 Core 51 | . . 51 Absorbed by Shields . | . . . Core Remaining (%) 100 | 100 100 . Volleys Fired 19 | . . 19 Largest 3 | . . 3 Hottest 181 | . . 181 Shots Fired 49 | . . 49 Gun 46 | . . 46 Cannon 3 | . . 3 Launcher . | . . . Special . | . . . Kinetic . | . . . Thermal 49 | . . 49 Explosive . | . . . Electromagnetic . | . . . Robot Hit Streak 16 | . . 16 Robot Miss Streak 4 | . . 4 Penetration Max . | . . . Secondary Targets 1 | . . 1 Max Gunslinging Chain 1 | . . 1 Shots Hit Robots 35 | . . 35 Core Hits 11 | . . 11 Critical Kills . | . . . Critical Parts Destroyed . | . . . Critical Strikes 2 | . . 2 Burn 2 | . . 2 Melee Attacks 7 | . . 7 Impact . | . . . Slashing . | . . . Piercing . | . . . Sneak Attacks 7 | . . 7 Combat Hostiles . | . . . Follow-up Attacks . | . . . Damage Inflicted 427 | . . 427 Guns 380 | . . 380 Cannons 47 | . . 47 Explosions . | . . . Melee . | . . . Ramming . | . . . Kinetic . | . . . Thermal 427 | . . 427 Explosive . | . . . Electromagnetic . | . . . Impact . | . . . Slashing . | . . . Piercing . | . . . Highest Corruption . | . . . Average Corruption . | . . . Corruption Purged . | . . . Corruption Blocked . | . . . Overload Shots . | . . . Overflow Damage . | . . . Projectiles . | . . . Explosions . | . . . Melee . | . . . Knockbacks . | . . . Impact . | . . . Kinetic . | . . . Secondary . | . . . Self-Inflicted Damage . | . . . Shots . | . . . Rammed . | . . . Targets Rammed . | . . . Kicked . | . . . Crushed . | . . . Highest Temperature 526 | . . 526 Average Temperature 214 | . . 214 Received Heat Transfer 54 | . . 54 Effects 14 | . . 14 Shutdowns 3 | . . 3 Interference 7 | . . 7 Matter Decay 1 | . . 1 Short Circuit 2 | . . 2 Damage (minor) 1 | . . 1 Siege Activations . | . . . Robots Corrupted . | . . . Combat Hostiles . | . . . Parts Fried . | . . . Impact Corruptions . | . . . Robots Melted 1 | . . 1 Combat Hostiles 1 | . . 1 Parts Melted 6 | . . 6 Heat Transferred 1184 | . . 1184 Parts Sabotaged . | . . . Parts Stolen . | . . . Parts Stripped . | . . . Power Chain Reactions . | . . . Alert | -11 -10 -9 ------- Run | Yrd Mat Mat Peak Influence 343 | . 50 343 Initial 20 | . . 20 Average 109 | . 25 165 Maximum Alert Level 1 | . . 1 Low Security (%) 85 | 100 100 75 Level 1 14 | . . 24 Level 2 . | . . . Level 3 . | . . . Level 4 . | . . . Level 5 . | . . . High Security . | . . . Max Security . | . . . Squads Dispatched 1 | . 1 . Investigation . | . . . Extermination . | . . . Reinforcement 1 | . 1 . Assault . | . . . Garrison . | . . . Intercept . | . . . Searches Triggered . | . . . Construction Impeded . | . . . Haulers Reinforced . | . . . Active Scanning Responses . | . . . Cargo Convoy Interrupts . | . . . Stealth | -11 -10 -9 --------- Run | Yrd Mat Mat Distress Signals 1 | . . 1 Communications Jammed . | . . . Distress Signals . | . . . Times Spotted 23 | . 3 20 Peak Tracking Total 6 | . 3 6 Tactical Retreats 1 | . . 1 Traps | -11 -10 -9 ------- Run | Yrd Mat Mat Traps Triggered . | . . . Indirectly . | . . . Trap Hack Attempts . | . . . Triggered . | . . . Disarmed . | . . . Reprogrammed . | . . . Reused . | . . . Traps Extracted . | . . . Installed . | . . . Triggered . | . . . Machines | -11 -10 -9 ---------- Run | Yrd Mat Mat Machines Disabled . | . . . Max in Single Turn . | . . . Machines Repaired . | . . . Machines Dismantled . | . . . Machines Sabotaged . | . . . Overloaded Fab Kills . | . . . Hacking | -11 -10 -9 --------- Run | Yrd Mat Mat Machines Accessed 3 | . 3 . Terminals 2 | . 2 . Fabricators . | . . . Repair Stations . | . . . Recycling Units 1 | . 1 . Scanalyzers . | . . . Garrison Access . | . . . Total Hacks 3 | . 3 . Successful 2 | . 2 . Failed 1 | . 1 . Catastrophic . | . . . Database Lockouts . | . . . Manual . | . . . Terminals 2 | . 2 . Fabricators . | . . . Repair Stations . | . . . Recycling Units 1 | . 1 . Scanalyzers . | . . . Garrison Access . | . . . Terminal Hacks 1 | . 1 . Robot Analysis 1 | . 1 . Fabricator Hacks . | . . . Repair Station Hacks . | . . . Recycling Unit Hacks 1 | . 1 . Report Inventory 1 | . 1 . Scanalyzer . | . . . Garrison Access Hacks . | . . . Unauthorized Hacks . | . . . Terminals . | . . . Fabricators . | . . . Repair Stations . | . . . Recycling Units . | . . . Scanalyzers . | . . . Garrison Access . | . . . Data Cores Recovered . | . . . Used . | . . . Hacking Detections 1 | . 1 . Full Trace Events . | . . . Feedback Events . | . . . Feedback Blocked . | . . . Robot Schematics Acquired . | . . . Robots Built . | . . . Authchips . | . . . Time . | . . . Total Robot Build Rating . | . . . Part Schematics Acquired . | . . . Parts Built . | . . . Authchips . | . . . Time . | . . . Total Part Build Rating . | . . . Parts Repaired . | . . . Time . | . . . Parts Recycled . | . . . Recycled Matter . | . . . Retrieved Matter . | . . . Retrieved Components . | . . . Parts Scanalyzed . | . . . Part Schematics Acquired . | . . . Parts Damaged . | . . . Bothacking | -11 -10 -9 ------------ Run | Yrd Mat Mat Used RIF Installer . | . . . Robots Hacked 1 | . . 1 Non-combat 1 | . . 1 Combat . | . . . Robot Hacks Applied 4 | . . 4 parse_system 2 | . . 2 no_distress 2 | . . 2 Relay Couplers Released . | . . . Fabnet Peak Effective % . | . . . Robots Rewired . | . . . Allies Hacked . | . . . Hacks Repelled . | . . . Allies | -11 -10 -9 -------- Run | Yrd Mat Mat Total Allies . | . . . Largest Group . | . . . Highest-Rated Group . | . . . Highest-Rated Ally . | . . . Total Orders . | . . . Ally Attacks . | . . . Total Damage . | . . . Kills . | . . . Allies Corrupted . | . . . Allies Melted . | . . . Intel | -11 -10 -9 ------- Run | Yrd Mat Mat Robot Analysis Total 1 | . 1 . Derelict Logs Recovered . | . . . Drone Launches . | . . . Drone Recoveries . | . . . Exploration | -11 -10 -9 ------------- Run | Yrd Mat Mat Turns Passed 1036 | 52 356 628 Spaces Moved 510 | 34 213 263 Core 5 | 5 . . Treads . | . . . Legs 380 | 29 213 138 Wheels 125 | . . 125 Hover . | . . . Flight . | . . . Fastest Speed 50 | 50 120 115 Average Speed 144 | 117 120 168 Slowest Speed 260 | 200 120 260 Overloaded Moves . | . . . Propulsion Burnouts . | . . . Robots Hopped . | . . . Cave-ins Triggered . | . . . Exploration Rate (%) 21 | 3 38 22 Regions Visited 2 Branch Regions . Pre-discovered Areas . | . . . Known Exits Taken . | . . . Unknown Exits Taken 2 | 1 1 . Scrap Searched . | . . . Spaces Dug . | . . . Terrain Destroyed . | . . . Melee . | . . . Projectile . | . . . AOE . | . . . Terrain Rammed . | . . . Walls Destroyed . | . . . Machines Disabled . | . . . Actions | -11 -10 -9 --------- Run | Yrd Mat Mat Total 768 | 43 315 410 Wait 163 | . 85 78 Move 508 | 33 212 263 Hop . | . . . Pick Up 23 | 4 7 12 Fast Attach 10 | 6 4 . Attach 5 | . . 5 Detach 1 | . 1 . Swap 13 | . . 13 Drop 19 | . 6 13 Fire 19 | . . 19 Melee 7 | . . 7 Ram . | . . . Kick . | . . . Crush . | . . . Escape Stasis . | . . . Rewire . | . . . Trap . | . . . Miscellaneous . | . . . Route ------- -11/Scrapyard -10/Materials -9/Materials History --------- Turn | Location | Event 18 | -11/Scrapyard | Discovered new exit (range 15) 53 | -11/Scrapyard | Entered Materials 307 | -10/Materials | Build established: Mutant 376 | -10/Materials | Discovered new exit (range 12) 409 | -10/Materials | Entered another Materials area 409 | -9/Materials | Evolved 2 slots: Utility x1, Weapon x1 1037 | -9/Materials | Self-destructed Last Messages --------------- Jacked U-05 Engineer... Command string: help No effect. Sneak attack on U-05 Engineer. Jacked U-05 Engineer... >>no_distress Distress signal routine blocked. U-05 Engineer lays Concrete. Sneak attack on U-05 Engineer. Jacked U-05 Engineer... T-07 Excavator is excavating. U-05 Engineer lays Concrete. T-07 Excavator is excavating. U-05 Engineer lays Concrete. T-07 Excavator is excavating. Sneak attack on U-05 Engineer. Jacked U-05 Engineer... >>parse_system Reading system data... U-05 Engineer lays Concrete. Map ----- +----------------------------------------------------+ | ##+#####?????????? | | #####?????????? | | [[ #?????????? | | ##+#### #?????????? | | ??# # *#?????????? | | ???# """ # *!*#?????????? | | ???# """ # ! !#?????????? | | ???# """ # !!#?????????? | | ???# [" ##########????? | | ???# """ ### #?# ! !#????? | | ???# """ #?# #?# #????? | | ?? / """ #?# #?# """ #????? | | ? # #?# #?# """ #????? | | ???# #?# #?# """ #????? | | ???# #?# #??? ?????? | | ???# #?# ######+#??????? | | ???######### #??????? | | ????# # #??????? | | ????# | # #??????? | | ????# + #??????? | | ????# [[ # #??????? | | ????# [! ## ###### #??????? | | ????# ## #??### #######? | | ????######### #??# # #? | | ???????????? ??# # t #? | | ???????????? ??# @ #? | | ??????????? #?# # u##? | | ??????????? ####?# [ ####?? | | ??????????? ?????#######????? | | ??????????##????????????????? | | ????????????????????????????? | | ????????????????????????????? | | ????????????????????????????? | | ????????????????????????????? | | ????????????????????????????? | | ????????????????????????????? | | ????????????????????????????? | | ????????????????????????????? | | ????????????????????????????? | | ????????????????????????????? | | ????????????????????????????? | | ????????????????????????????? | | ????????????????????????????? | | ????????????????????????????? | | ????????????????????????????? | | ????????????????????????????? | | ????????????????????????????? | | ????????????????????????????? | | ????????????????????????????? | | ????????????????????????????? | +----------------------------------------------------+ Best States ------------- Heat Dissipation 38 Energy Generation 14 Energy Capacity 140 Matter Stores 246 Matter Capacity 300 Sight Range 16 Robot Scan Range 14 Terrain Scan Density 10 Armor Coverage 150 Evasion (%) 55 Item Schematics ----------------- None Robot Schematics ------------------ None Fabricated ------------ Nothing Alien Tech Used ----------------- None Achievements -------------- None Challenges ------------ None Game ------ Seed SapperLatentReplica Manual? 0 Play Time 00:26:56 Cumulative 17.3 hours Start 2024.08.23 @ 18:29:01 End 2024.08.23 @ 20:03:59 Sessions 3 Manual Loads 0 Difficulty Rogue Special Mode None Game No. 20 Rogue 20 Adventurer 0 Explorer 0 Win Type - Total 0 Types 0/0/0/0/0/0/0/0/0 Lore% 11 Gallery% 21 Achievement% 16 Wizard Run 0 Options --------- Layout 0 ASCII 0 Keyboard 0 Movement Numpad Keybinds 0 Fullscreen 1 Font 24/Smallcaps Map View 56x25 Zoom Use 97% Tactical HUD 0 Map Filters NONE Filters NONE Steam 1 RUN: 73badec1-70d7-47c4-a62c-fbf9a93622f8